[Event "*** Titled Tuesday Blitz"]
[Site "Chess.com"]
[Date "2020.05.05"]
[Round "1"]
[White "pirulillo"]
[Black "fancyknightmaneuvers"]
[Result "0-1"]
[WhiteElo "2219"]
[BlackElo "2564"]
[TimeControl "180+1"]
[EndTime "10:07:48 PDT"]
[Termination "fancyknightmaneuvers won by resignation"]

1. e4 {[%clk 0:02:59.5]} 1... c5 {[%clk 0:02:58.4]} 2. Nf3 {[%clk 0:02:58.2]}
2... e6 {[%clk 0:02:58.6]} 3. d3 {[%clk 0:02:57.4]} 3... Nc6 {[%clk 0:02:57.4]}
4. g3 {[%clk 0:02:57]} 4... d5 {[%clk 0:02:56.4]} 5. Nbd2 {[%clk 0:02:56.8]}
5... Nf6 {[%clk 0:02:56.8]} 6. Bg2 {[%clk 0:02:56.7]} 6... Be7 {[%clk
0:02:56.5]} 7. O-O {[%clk 0:02:56.7]} 7... O-O {[%clk 0:02:55.1]} 8. e5 {[%clk
0:02:56.8]} 8... Nd7 {[%clk 0:02:55.2]} 9. Re1 {[%clk 0:02:56.8]} 9... Qc7
{[%clk 0:02:55.4]} 10. Qe2 {[%clk 0:02:56.5]} 10... f6 {[%clk 0:02:55.7]} 11.
exf6 {[%clk 0:02:52.9]} 11... Nxf6 {[%clk 0:02:56.6]} 12. c3 {[%clk 0:02:50.7]}
12... Bd6 {[%clk 0:02:51.8]} 13. Nf1 {[%clk 0:02:40.5]} 13... b6 {[%clk
0:02:50.6]} 14. d4 {[%clk 0:02:31.3]} 14... Re8 {[%clk 0:02:49.9]} 15. Bg5
{[%clk 0:02:25.8]} 15... Ne4 {[%clk 0:02:49]} 16. Be3 {[%clk 0:02:24.3]} 16...
a5 {[%clk 0:02:48.4]} 17. N1d2 {[%clk 0:02:21.5]} 17... Ba6 {[%clk 0:02:46.4]}
18. Qd1 {[%clk 0:02:21.5]} 18... Nf6 {[%clk 0:02:46.2]} 19. Bg5 {[%clk
0:02:12.8]} 19... Rad8 {[%clk 0:02:37.9]} 20. Nb3 {[%clk 0:02:04.3]} 20... cxd4
{[%clk 0:02:24.2]} 21. Nbxd4 {[%clk 0:02:01.9]} 21... Ne4 {[%clk 0:02:05.3]} 22.
Be3 {[%clk 0:01:56.7]} 22... Bc5 {[%clk 0:01:35.4]} 23. Nd2 {[%clk 0:01:43.9]}
23... Nf6 {[%clk 0:01:28.5]} 24. Nxc6 {[%clk 0:01:31.4]} 24... Qxc6 {[%clk
0:01:27.4]} 25. Nb3 {[%clk 0:01:29.4]} 25... Bxe3 {[%clk 0:01:25.7]} 26. Rxe3
{[%clk 0:01:28.8]} 26... e5 {[%clk 0:01:26.2]} 27. Rc1 {[%clk 0:01:18.7]} 27...
a4 {[%clk 0:01:24.3]} 28. Nd2 {[%clk 0:01:16.5]} 28... Bb7 {[%clk 0:01:24.5]}
29. Nf1 {[%clk 0:01:12.8]} 29... b5 {[%clk 0:01:22.6]} 30. Rd3 {[%clk
0:01:11.8]} 30... Qc5 {[%clk 0:01:21]} 31. Ne3 {[%clk 0:01:07.7]} 31... Bc6
{[%clk 0:01:16.8]} 32. b4 {[%clk 0:01:05.6]} 32... axb3 {[%clk 0:01:15.7]} 33.
axb3 {[%clk 0:01:06.1]} 33... Qd6 {[%clk 0:01:07.5]} 34. c4 {[%clk 0:01:03.1]}
34... bxc4 {[%clk 0:01:07.3]} 35. bxc4 {[%clk 0:01:00.9]} 35... d4 {[%clk
0:01:07.6]} 36. Bxc6 {[%clk 0:00:56.5]} 36... Qxc6 {[%clk 0:01:07.3]} 37. Ng4
{[%clk 0:00:53.4]} 37... Nxg4 {[%clk 0:01:02.1]} 38. Qxg4 {[%clk 0:00:52.8]}
38... e4 {[%clk 0:01:02.7]} 39. Rdd1 {[%clk 0:00:49.9]} 39... d3 {[%clk
0:01:02.8]} 40. Rd2 {[%clk 0:00:44.8]} 40... Qc5 {[%clk 0:01:01]} 41. Re1 {[%clk
0:00:42.3]} 41... Qxc4 {[%clk 0:00:52.5]} 42. Qf4 {[%clk 0:00:39.5]} 42... Qd4
{[%clk 0:00:47.4]} 43. Qe3 {[%clk 0:00:36.9]} 43... Qd7 {[%clk 0:00:43.8]} 44.
Kg2 {[%clk 0:00:34.7]} 44... Re7 {[%clk 0:00:36.6]} 45. Red1 {[%clk 0:00:29.4]}
45... Rf8 {[%clk 0:00:30.4]} 46. Re1 {[%clk 0:00:28.7]} 46... Qf5 {[%clk
0:00:29.4]} 47. Rxd3 {[%clk 0:00:27.4]} 47... exd3 {[%clk 0:00:27.9]} 48. Qxe7
{[%clk 0:00:27.3]} 48... Qxf2+ {[%clk 0:00:27.6]} 49. Kh3 {[%clk 0:00:26.9]}
49... d2 {[%clk 0:00:25.2]} 50. Rd1 {[%clk 0:00:25.8]} 50... Qf5+ {[%clk
0:00:24.1]} 51. Kg2 {[%clk 0:00:24.7]} 51... Qf3+ {[%clk 0:00:24.1]} 52. Kh3
{[%clk 0:00:24.5]} 52... Qxd1 {[%clk 0:00:23.6]} 0-1

[Event "*** Titled Tuesday Blitz"]
[Site "Chess.com"]
[Date "2020.05.05"]
[Round "1"]
[White "rasmussvane"]
[Black "Gyapiking"]
[Result "1/2-1/2"]
[WhiteElo "2875"]
[BlackElo "2458"]
[TimeControl "180+1"]
[EndTime "10:07:49 PDT"]
[Termination "Game drawn by repetition"]

1. Nf3 {[%clk 0:03:00.9]} 1... d5 {[%clk 0:02:58.4]} 2. g3 {[%clk 0:03:01]} 2...
Bg4 {[%clk 0:02:57.5]} 3. Bg2 {[%clk 0:03:00.8]} 3... Nd7 {[%clk 0:02:57.5]} 4.
O-O {[%clk 0:03:00.3]} 4... e6 {[%clk 0:02:57.3]} 5. h3 {[%clk 0:03:00]} 5...
Bh5 {[%clk 0:02:56.5]} 6. d4 {[%clk 0:02:59.7]} 6... Ngf6 {[%clk 0:02:55.1]} 7.
c4 {[%clk 0:02:58.8]} 7... c6 {[%clk 0:02:53.6]} 8. cxd5 {[%clk 0:02:51.8]} 8...
cxd5 {[%clk 0:02:50.4]} 9. Qb3 {[%clk 0:02:50.6]} 9... Qb6 {[%clk 0:02:49]} 10.
Nc3 {[%clk 0:02:50.4]} 10... Be7 {[%clk 0:02:46.1]} 11. Ne5 {[%clk 0:02:49.2]}
11... Nxe5 {[%clk 0:02:43]} 12. dxe5 {[%clk 0:02:42.7]} 12... Qxb3 {[%clk
0:02:34.8]} 13. axb3 {[%clk 0:02:43.6]} 13... Nd7 {[%clk 0:02:34.8]} 14. f4
{[%clk 0:02:30.8]} 14... Bg6 {[%clk 0:02:23]} 15. e4 {[%clk 0:01:42.3]} 15...
dxe4 {[%clk 0:02:18.1]} 16. Nxe4 {[%clk 0:01:43.2]} 16... O-O {[%clk 0:02:12.5]}
17. Nd6 {[%clk 0:01:14.1]} 17... Bxd6 {[%clk 0:02:08.4]} 18. exd6 {[%clk
0:01:15]} 18... Nc5 {[%clk 0:02:08.5]} 19. Be3 {[%clk 0:01:12.3]} 19... Ne4
{[%clk 0:01:52.9]} 20. Rfd1 {[%clk 0:01:06.7]} 20... Rfd8 {[%clk 0:01:44.3]} 21.
d7 {[%clk 0:01:02.2]} 21... b6 {[%clk 0:01:26.4]} 22. Bxe4 {[%clk 0:00:57.7]}
22... Bxe4 {[%clk 0:01:25.7]} 23. Rac1 {[%clk 0:00:32.9]} 23... Bd5 {[%clk
0:01:09.9]} 24. Rc7 {[%clk 0:00:31.9]} 24... Kf8 {[%clk 0:01:09.8]} 25. Bd2
{[%clk 0:00:31.2]} 25... a5 {[%clk 0:01:04.3]} 26. Be3 {[%clk 0:00:22.1]} 26...
Ke7 {[%clk 0:01:03.3]} 27. Bxb6 {[%clk 0:00:21.6]} 27... Rxd7 {[%clk 0:01:03.1]}
28. Rc5 {[%clk 0:00:20]} 28... Rb7 {[%clk 0:00:59.4]} 29. Bxa5 {[%clk
0:00:19.6]} 29... Rxb3 {[%clk 0:00:58.3]} 30. Bc3 {[%clk 0:00:19.6]} 30... Rb7
{[%clk 0:00:47.5]} 31. Kf2 {[%clk 0:00:13.6]} 31... g6 {[%clk 0:00:46.8]} 32. g4
{[%clk 0:00:12.2]} 32... Rd7 {[%clk 0:00:40.8]} 33. g5 {[%clk 0:00:11.6]} 33...
Be4 {[%clk 0:00:35]} 34. Bf6+ {[%clk 0:00:10.7]} 34... Ke8 {[%clk 0:00:34.9]}
35. Rxd7 {[%clk 0:00:09.7]} 35... Kxd7 {[%clk 0:00:34.4]} 36. Ke3 {[%clk
0:00:10.3]} 36... Bd5 {[%clk 0:00:34.2]} 37. Rc1 {[%clk 0:00:08.9]} 37... Rc8
{[%clk 0:00:33.7]} 38. Ra1 {[%clk 0:00:08.3]} 38... Ra8 {[%clk 0:00:33.8]} 39.
Rd1 {[%clk 0:00:07.3]} 39... Rc8 {[%clk 0:00:32]} 40. Be5 {[%clk 0:00:07.5]}
40... Rc2 {[%clk 0:00:31.1]} 41. Ra1 {[%clk 0:00:07.1]} 41... Rh2 {[%clk
0:00:29.6]} 42. Ra7+ {[%clk 0:00:06.9]} 42... Ke8 {[%clk 0:00:29.7]} 43. Kd4
{[%clk 0:00:06.6]} 43... Rxh3 {[%clk 0:00:29.7]} 44. Kc5 {[%clk 0:00:06.9]}
44... Rb3 {[%clk 0:00:29.4]} 45. Bf6 {[%clk 0:00:03.1]} 45... Rb8 {[%clk
0:00:28]} 46. Kd6 {[%clk 0:00:02.7]} 46... Kf8 {[%clk 0:00:27.4]} 47. Ke5 {[%clk
0:00:02.5]} 47... Rxb2 {[%clk 0:00:25]} 48. Rc7 {[%clk 0:00:01.7]} 48... Rb8
{[%clk 0:00:24.6]} 49. Be7+ {[%clk 0:00:02.2]} 49... Kg8 {[%clk 0:00:23.9]} 50.
Bf6 {[%clk 0:00:03.1]} 50... Re8 {[%clk 0:00:22.2]} 51. Rd7 {[%clk 0:00:03.3]}
51... Ra8 {[%clk 0:00:21.9]} 52. Kd6 {[%clk 0:00:03.6]} 52... Ra6+ {[%clk
0:00:21.5]} 53. Ke5 {[%clk 0:00:04.1]} 53... Ra8 {[%clk 0:00:21.6]} 54. Re7
{[%clk 0:00:04.6]} 54... Rc8 {[%clk 0:00:21.2]} 55. Rd7 {[%clk 0:00:05]} 55...
Ra8 {[%clk 0:00:21]} 1/2-1/2

[Event "*** Titled Tuesday Blitz"]
[Site "Chess.com"]
[Date "2020.05.05"]
[Round "1"]
[White "DenishevM"]
[Black "Olga_Zhuravleva"]
[Result "1-0"]
[WhiteElo "2603"]
[BlackElo "2277"]
[TimeControl "180+1"]
[EndTime "10:07:50 PDT"]
[Termination "DenishevM won by resignation"]

1. d4 {[%clk 0:02:58]} 1... Nf6 {[%clk 0:02:57]} 2. c4 {[%clk 0:02:57.1]} 2...
e6 {[%clk 0:02:57.1]} 3. Nc3 {[%clk 0:02:52.9]} 3... Bb4 {[%clk 0:02:56.3]} 4.
Bd2 {[%clk 0:02:53.1]} 4... b6 {[%clk 0:02:48.3]} 5. Nf3 {[%clk 0:02:52.7]} 5...
Ba6 {[%clk 0:02:47.2]} 6. e3 {[%clk 0:02:52.6]} 6... O-O {[%clk 0:02:44.5]} 7.
Be2 {[%clk 0:02:50.5]} 7... c5 {[%clk 0:02:40.3]} 8. a3 {[%clk 0:02:48.7]} 8...
Bxc3 {[%clk 0:02:39]} 9. Bxc3 {[%clk 0:02:49.6]} 9... d6 {[%clk 0:02:22.4]} 10.
O-O {[%clk 0:02:46.6]} 10... Nc6 {[%clk 0:02:22.7]} 11. b4 {[%clk 0:02:33.7]}
11... Ne4 {[%clk 0:02:06.9]} 12. Qc2 {[%clk 0:02:19.4]} 12... Nxc3 {[%clk
0:02:05.6]} 13. Qxc3 {[%clk 0:02:20.3]} 13... Bb7 {[%clk 0:02:01.9]} 14. Rfd1
{[%clk 0:02:16.3]} 14... Qf6 {[%clk 0:01:58.8]} 15. Qb3 {[%clk 0:01:52.8]} 15...
Rab8 {[%clk 0:01:51.9]} 16. Ra2 {[%clk 0:01:45.4]} 16... cxd4 {[%clk 0:01:39.1]}
17. Nxd4 {[%clk 0:01:44.8]} 17... Nxd4 {[%clk 0:01:35.2]} 18. Rxd4 {[%clk
0:01:45.7]} 18... d5 {[%clk 0:01:12]} 19. Rad2 {[%clk 0:01:29.3]} 19... dxc4
{[%clk 0:01:02.8]} 20. Bxc4 {[%clk 0:01:30.2]} 20... Rfd8 {[%clk 0:01:01.6]} 21.
f3 {[%clk 0:01:16.8]} 21... h6 {[%clk 0:01:01]} 22. Kf2 {[%clk 0:01:13.4]} 22...
Rxd4 {[%clk 0:00:57.2]} 23. Rxd4 {[%clk 0:01:14.3]} 23... Rd8 {[%clk 0:00:52.2]}
24. Rxd8+ {[%clk 0:01:04]} 24... Qxd8 {[%clk 0:00:52]} 25. g3 {[%clk 0:00:36.5]}
25... Qd2+ {[%clk 0:00:32.6]} 26. Be2 {[%clk 0:00:36.5]} 26... Bd5 {[%clk
0:00:20.6]} 27. Qd3 {[%clk 0:00:35.5]} 27... Qxd3 {[%clk 0:00:20.4]} 28. Bxd3
{[%clk 0:00:35.9]} 28... Kf8 {[%clk 0:00:21.2]} 29. e4 {[%clk 0:00:36.5]} 29...
Bc6 {[%clk 0:00:21.4]} 30. Ke3 {[%clk 0:00:37.1]} 30... Ke7 {[%clk 0:00:21.8]}
31. e5 {[%clk 0:00:37.5]} 31... Ba4 {[%clk 0:00:20.3]} 32. f4 {[%clk 0:00:35.6]}
32... Bb3 {[%clk 0:00:20.5]} 33. Kd4 {[%clk 0:00:35.2]} 33... Kd7 {[%clk
0:00:20.7]} 34. Be4 {[%clk 0:00:33.7]} 34... Kc7 {[%clk 0:00:20.6]} 35. h4
{[%clk 0:00:33.8]} 35... Bd1 {[%clk 0:00:20.6]} 36. Ke3 {[%clk 0:00:32.8]} 36...
Ba4 {[%clk 0:00:19.6]} 37. Bf3 {[%clk 0:00:32.7]} 37... Bb5 {[%clk 0:00:19.1]}
38. h5 {[%clk 0:00:31.7]} 38... Be8 {[%clk 0:00:18]} 39. g4 {[%clk 0:00:32.1]}
39... Kd7 {[%clk 0:00:16.8]} 40. g5 {[%clk 0:00:32.4]} 40... Ke7 {[%clk
0:00:17.3]} 41. Kd4 {[%clk 0:00:31.1]} 41... f6 {[%clk 0:00:16.3]} 42. exf6+
{[%clk 0:00:28.6]} 42... gxf6 {[%clk 0:00:16.4]} 43. g6 {[%clk 0:00:29.5]} 43...
Kf8 {[%clk 0:00:15.6]} 44. Bg4 {[%clk 0:00:20.2]} 44... Bd7 {[%clk 0:00:15.3]}
45. Kc4 {[%clk 0:00:18.8]} 45... Kg7 {[%clk 0:00:14.4]} 46. Bf3 {[%clk
0:00:19.1]} 46... f5 {[%clk 0:00:14]} 47. b5 {[%clk 0:00:19]} 47... Kf6 {[%clk
0:00:13.8]} 48. Bc6 {[%clk 0:00:19]} 48... Bc8 {[%clk 0:00:14.2]} 49. Kd4 {[%clk
0:00:19.3]} 49... Kg7 {[%clk 0:00:12.1]} 50. Ke5 {[%clk 0:00:19.4]} 50... a6
{[%clk 0:00:12.6]} 51. a4 {[%clk 0:00:19.4]} 51... a5 {[%clk 0:00:12.4]} 52. Kd6
{[%clk 0:00:19.3]} 52... Kf6 {[%clk 0:00:12.3]} 53. Kc7 {[%clk 0:00:19.9]} 53...
e5 {[%clk 0:00:11.5]} 54. fxe5+ {[%clk 0:00:20.3]} 54... Kxe5 {[%clk 0:00:11.1]}
55. Kxc8 {[%clk 0:00:21.2]} 1-0

[Event "*** Titled Tuesday Blitz"]
[Site "Chess.com"]
[Date "2020.05.05"]
[Round "1"]
[White "Pechen_Yeltsina"]
[Black "Malysch"]
[Result "1-0"]
[WhiteElo "2731"]
[BlackElo "2377"]
[TimeControl "180+1"]
[EndTime "10:07:52 PDT"]
[Termination "Pechen_Yeltsina won on time"]

1. e4 {[%clk 0:03:00.9]} 1... d5 {[%clk 0:02:07.8]} 2. exd5 {[%clk 0:02:59.6]}
2... Qxd5 {[%clk 0:02:07.1]} 3. Nc3 {[%clk 0:03:00.1]} 3... Qd6 {[%clk
0:02:06.3]} 4. d4 {[%clk 0:02:59.2]} 4... Nf6 {[%clk 0:02:05.8]} 5. Nf3 {[%clk
0:02:59.5]} 5... a6 {[%clk 0:02:04.4]} 6. Ne5 {[%clk 0:02:58]} 6... Nc6 {[%clk
0:02:03.8]} 7. Nxc6 {[%clk 0:02:53.3]} 7... Qxc6 {[%clk 0:02:04.7]} 8. d5 {[%clk
0:02:52.9]} 8... Qd6 {[%clk 0:02:03.9]} 9. g3 {[%clk 0:02:53.3]} 9... Bg4 {[%clk
0:02:03]} 10. Qd3 {[%clk 0:02:51.6]} 10... O-O-O {[%clk 0:02:01.5]} 11. Bf4
{[%clk 0:02:51.2]} 11... Qd7 {[%clk 0:01:59]} 12. Bg2 {[%clk 0:02:44.2]} 12...
e6 {[%clk 0:01:53.9]} 13. O-O {[%clk 0:02:21.4]} 13... exd5 {[%clk 0:01:50.5]}
14. Rfe1 {[%clk 0:02:06.5]} 14... Bc5 {[%clk 0:01:47.2]} 15. a3 {[%clk
0:02:03.2]} 15... Bb6 {[%clk 0:01:32.6]} 16. b4 {[%clk 0:02:00.9]} 16... Bf5
{[%clk 0:01:13.2]} 17. Qd2 {[%clk 0:02:00.8]} 17... d4 {[%clk 0:01:09.7]} 18.
Nd1 {[%clk 0:01:57]} 18... Rhe8 {[%clk 0:01:05.4]} 19. Bg5 {[%clk 0:01:44.2]}
19... Rxe1+ {[%clk 0:00:54.4]} 20. Qxe1 {[%clk 0:01:43.6]} 20... Bxc2 {[%clk
0:00:52]} 21. Nb2 {[%clk 0:01:36.7]} 21... d3 {[%clk 0:00:45.6]} 22. Nc4 {[%clk
0:01:33.2]} 22... Bd4 {[%clk 0:00:40.8]} 23. Rc1 {[%clk 0:01:33.2]} 23... Re8
{[%clk 0:00:33.3]} 24. Qf1 {[%clk 0:01:21.8]} 24... Re2 {[%clk 0:00:29.7]} 25.
Be3 {[%clk 0:01:14.7]} 25... Ng4 {[%clk 0:00:25.7]} 26. Bf3 {[%clk 0:01:08.9]}
26... Nxe3 {[%clk 0:00:21.7]} 27. fxe3 {[%clk 0:01:06.4]} 27... Rxe3 {[%clk
0:00:21]} 28. Nxe3 {[%clk 0:01:04.9]} 28... Bxe3+ {[%clk 0:00:20.5]} 29. Kg2
{[%clk 0:01:05.8]} 29... Bxc1 {[%clk 0:00:20.1]} 30. Qxc1 {[%clk 0:01:06.7]}
30... Ba4 {[%clk 0:00:18.4]} 31. Qe3 {[%clk 0:01:05.4]} 31... Bc6 {[%clk
0:00:18]} 32. Bxc6 {[%clk 0:01:00.7]} 32... bxc6 {[%clk 0:00:18.9]} 33. Qd2
{[%clk 0:00:52.5]} 33... Qd4 {[%clk 0:00:18.9]} 34. Kf3 {[%clk 0:00:52]} 34...
Kb7 {[%clk 0:00:18.9]} 35. h4 {[%clk 0:00:51]} 35... Kb6 {[%clk 0:00:19.1]} 36.
a4 {[%clk 0:00:49.4]} 36... c5 {[%clk 0:00:19]} 37. bxc5+ {[%clk 0:00:48.5]}
37... Kxc5 {[%clk 0:00:19.9]} 38. Qa5+ {[%clk 0:00:46.8]} 38... Kc6 {[%clk
0:00:16.5]} 39. Qxa6+ {[%clk 0:00:46.3]} 39... Kd7 {[%clk 0:00:16.6]} 40. Qb5+
{[%clk 0:00:45.8]} 40... Kd6 {[%clk 0:00:16.6]} 41. Qb3 {[%clk 0:00:32.7]} 41...
d2 {[%clk 0:00:15.5]} 42. Ke2 {[%clk 0:00:30.6]} 42... c5 {[%clk 0:00:14.3]} 43.
Qb8+ {[%clk 0:00:29.8]} 43... Kc6 {[%clk 0:00:13.7]} 44. Qb5+ {[%clk 0:00:29.5]}
44... Kd6 {[%clk 0:00:13.4]} 45. Qb6+ {[%clk 0:00:29.6]} 45... Ke5 {[%clk
0:00:13]} 46. Qc7+ {[%clk 0:00:28.6]} 46... Kf5 {[%clk 0:00:12.7]} 47. Qxf7+
{[%clk 0:00:28.3]} 47... Ke4 {[%clk 0:00:12.5]} 48. Qf4+ {[%clk 0:00:25.7]}
48... Kd5 {[%clk 0:00:12]} 49. Qf7+ {[%clk 0:00:19]} 49... Ke5 {[%clk
0:00:11.1]} 50. Qxg7+ {[%clk 0:00:18.8]} 50... Kf5 {[%clk 0:00:11.1]} 51. Qxd4
{[%clk 0:00:19]} 51... cxd4 {[%clk 0:00:11.4]} 52. a5 {[%clk 0:00:19.3]} 1-0

[Event "*** Titled Tuesday Blitz"]
[Site "Chess.com"]
[Date "2020.05.05"]
[Round "1"]
[White "ftorodent"]
[Black "SlavenPastar"]
[Result "0-1"]
[WhiteElo "2663"]
[BlackElo "2365"]
[TimeControl "180+1"]
[EndTime "10:07:52 PDT"]
[Termination "SlavenPastar won on time"]

1. d4 {[%clk 0:03:00.7]} 1... b6 {[%clk 0:02:59.6]} 2. e4 {[%clk 0:02:59.6]}
2... Bb7 {[%clk 0:03:00.1]} 3. Nc3 {[%clk 0:02:59.5]} 3... e6 {[%clk 0:02:59.6]}
4. Nf3 {[%clk 0:02:58.9]} 4... Bb4 {[%clk 0:02:58.2]} 5. Bd3 {[%clk 0:02:58.7]}
5... Nf6 {[%clk 0:02:58.2]} 6. Qe2 {[%clk 0:02:54.4]} 6... d5 {[%clk 0:02:57.1]}
7. exd5 {[%clk 0:02:32.9]} 7... Nxd5 {[%clk 0:02:56.6]} 8. Bd2 {[%clk 0:02:33]}
8... Nxc3 {[%clk 0:02:52.2]} 9. bxc3 {[%clk 0:02:32.1]} 9... Be7 {[%clk
0:02:52.4]} 10. O-O {[%clk 0:02:20.2]} 10... O-O {[%clk 0:02:49.9]} 11. a4
{[%clk 0:02:04.5]} 11... a5 {[%clk 0:02:47.9]} 12. c4 {[%clk 0:01:58.1]} 12...
Nd7 {[%clk 0:02:27.3]} 13. Rfe1 {[%clk 0:01:56]} 13... Nf6 {[%clk 0:02:25.9]}
14. d5 {[%clk 0:01:51.6]} 14... exd5 {[%clk 0:02:05.6]} 15. cxd5 {[%clk
0:01:13.8]} 15... Nxd5 {[%clk 0:01:18.7]} 16. Qe4 {[%clk 0:01:01.8]} 16... g6
{[%clk 0:01:16]} 17. Bc4 {[%clk 0:00:41.1]} 17... Re8 {[%clk 0:01:08]} 18. Rad1
{[%clk 0:00:31]} 18... Bf6 {[%clk 0:00:58.8]} 19. Qd3 {[%clk 0:00:24.4]} 19...
Rxe1+ {[%clk 0:00:56.6]} 20. Rxe1 {[%clk 0:00:24.5]} 20... Nb4 {[%clk
0:00:50.8]} 21. Qb3 {[%clk 0:00:19.3]} 21... Bxf3 {[%clk 0:00:40.6]} 22. Bxf7+
{[%clk 0:00:17.8]} 22... Kg7 {[%clk 0:00:38.8]} 23. Bxb4 {[%clk 0:00:17]} 23...
axb4 {[%clk 0:00:27.4]} 24. gxf3 {[%clk 0:00:17.1]} 24... Bc3 {[%clk 0:00:17.5]}
25. Re4 {[%clk 0:00:14.7]} 25... Qf6 {[%clk 0:00:15.7]} 26. Bd5 {[%clk
0:00:13.3]} 26... Rd8 {[%clk 0:00:13.1]} 27. Qc4 {[%clk 0:00:11.7]} 27... Qg5+
{[%clk 0:00:11]} 28. Rg4 {[%clk 0:00:10]} 28... Qxd5 {[%clk 0:00:10.4]} 29.
Qxc7+ {[%clk 0:00:09.9]} 29... Rd7 {[%clk 0:00:10.5]} 30. Qc8 {[%clk 0:00:09.2]}
30... Qd1+ {[%clk 0:00:09.5]} 31. Kg2 {[%clk 0:00:08.7]} 31... Qd5 {[%clk
0:00:08.3]} 32. Rf4 {[%clk 0:00:07.1]} 32... Bf6 {[%clk 0:00:08.8]} 33. Re4
{[%clk 0:00:05.3]} 33... Qg5+ {[%clk 0:00:08.3]} 34. Rg4 {[%clk 0:00:05.4]}
34... Qd5 {[%clk 0:00:06.9]} 35. Rxb4 {[%clk 0:00:05.3]} 35... Re7 {[%clk
0:00:06]} 36. Rg4 {[%clk 0:00:03.3]} 36... h5 {[%clk 0:00:06.1]} 37. Rg3 {[%clk
0:00:02.5]} 37... h4 {[%clk 0:00:06.5]} 38. Rg4 {[%clk 0:00:01.8]} 38... h3+
{[%clk 0:00:06.5]} 39. Kg3 {[%clk 0:00:02]} 39... Be5+ {[%clk 0:00:06.3]} 40. f4
{[%clk 0:00:02.1]} 40... Bf6 {[%clk 0:00:05.1]} 0-1

[Event "*** Titled Tuesday Blitz"]
[Site "Chess.com"]
[Date "2020.05.05"]
[Round "1"]
[White "Peng_Li-Min"]
[Black "heartofatiger"]
[Result "1-0"]
[WhiteElo "2711"]
[BlackElo "2366"]
[TimeControl "180+1"]
[EndTime "10:07:53 PDT"]
[Termination "Peng_Li-Min won by resignation"]

1. c4 {[%clk 0:02:59.4]} 1... f5 {[%clk 0:02:58.2]} 2. d4 {[%clk 0:02:57.2]}
2... Nf6 {[%clk 0:02:57.2]} 3. Nf3 {[%clk 0:02:57.3]} 3... e6 {[%clk 0:02:57.8]}
4. g3 {[%clk 0:02:55.4]} 4... d5 {[%clk 0:02:57.8]} 5. Bg2 {[%clk 0:02:55.6]}
5... Bd6 {[%clk 0:02:58.4]} 6. b3 {[%clk 0:02:54]} 6... c6 {[%clk 0:02:55.7]} 7.
O-O {[%clk 0:02:52.8]} 7... Qe7 {[%clk 0:02:56.3]} 8. Bb2 {[%clk 0:02:50.6]}
8... O-O {[%clk 0:02:55.6]} 9. Qc1 {[%clk 0:02:50.8]} 9... b6 {[%clk 0:02:50.4]}
10. Ba3 {[%clk 0:02:50.7]} 10... Bb7 {[%clk 0:02:49.4]} 11. Bxd6 {[%clk
0:02:49.3]} 11... Qxd6 {[%clk 0:02:49.5]} 12. Nc3 {[%clk 0:02:45.9]} 12... Nbd7
{[%clk 0:02:48.4]} 13. Rd1 {[%clk 0:02:39]} 13... Ne4 {[%clk 0:02:46.1]} 14. e3
{[%clk 0:02:29.8]} 14... Kh8 {[%clk 0:02:44.2]} 15. Qb2 {[%clk 0:02:18.8]} 15...
Qe7 {[%clk 0:02:40.7]} 16. Ne5 {[%clk 0:02:16.4]} 16... Nxe5 {[%clk 0:02:38]}
17. dxe5 {[%clk 0:02:17.3]} 17... Rfd8 {[%clk 0:02:31.9]} 18. Ne2 {[%clk
0:02:01.6]} 18... c5 {[%clk 0:02:27.8]} 19. Rac1 {[%clk 0:01:57.3]} 19... h6
{[%clk 0:02:21.6]} 20. h4 {[%clk 0:01:57.2]} 20... dxc4 {[%clk 0:02:05.8]} 21.
bxc4 {[%clk 0:01:51.2]} 21... Rxd1+ {[%clk 0:02:04.5]} 22. Rxd1 {[%clk
0:01:52.1]} 22... Rd8 {[%clk 0:02:00.3]} 23. Rxd8+ {[%clk 0:01:49.6]} 23... Qxd8
{[%clk 0:01:59.8]} 24. Nf4 {[%clk 0:01:50.5]} 24... Qd7 {[%clk 0:01:36.9]} 25.
h5 {[%clk 0:01:34.4]} 25... Kh7 {[%clk 0:01:34.7]} 26. Kh2 {[%clk 0:01:25.1]}
26... Ng5 {[%clk 0:01:34.7]} 27. Qe2 {[%clk 0:01:18.2]} 27... Bxg2 {[%clk
0:01:30.9]} 28. Kxg2 {[%clk 0:01:19.1]} 28... Qc7 {[%clk 0:01:19.1]} 29. Ng6
{[%clk 0:01:17.2]} 29... Qc6+ {[%clk 0:01:16.2]} 30. f3 {[%clk 0:01:16.8]} 30...
a6 {[%clk 0:01:10.2]} 31. Nh4 {[%clk 0:00:13]} 31... Nf7 {[%clk 0:00:51.3]} 32.
Ng6 {[%clk 0:00:08.2]} 32... b5 {[%clk 0:00:51.5]} 33. Qd3 {[%clk 0:00:06.3]}
33... Ng5 {[%clk 0:00:49.3]} 34. Nh4 {[%clk 0:00:05.8]} 34... bxc4 {[%clk
0:00:48.2]} 35. Qxc4 {[%clk 0:00:06.7]} 35... Qb5 {[%clk 0:00:30.2]} 36. Qc2
{[%clk 0:00:06.3]} 36... c4 {[%clk 0:00:26.8]} 37. g4 {[%clk 0:00:06.6]} 37...
Qxe5 {[%clk 0:00:20.4]} 38. gxf5 {[%clk 0:00:06.6]} 38... exf5 {[%clk
0:00:16.7]} 39. Qxf5+ {[%clk 0:00:06.3]} 39... Qxf5 {[%clk 0:00:16.4]} 40. Nxf5
{[%clk 0:00:07.2]} 40... Ne6 {[%clk 0:00:13.3]} 41. Kf2 {[%clk 0:00:06.4]} 41...
g5 {[%clk 0:00:11.3]} 42. Ke2 {[%clk 0:00:04.9]} 42... Nc5 {[%clk 0:00:04.8]}
43. Kd2 {[%clk 0:00:05]} 43... Na4 {[%clk 0:00:04.3]} 44. Nd6 {[%clk 0:00:04.7]}
44... c3+ {[%clk 0:00:03.8]} 45. Kc2 {[%clk 0:00:05.2]} 45... Kg7 {[%clk
0:00:02.9]} 46. Ne4 {[%clk 0:00:05.8]} 46... Nb6 {[%clk 0:00:02.1]} 47. Nxc3
{[%clk 0:00:06.4]} 47... Nd5 {[%clk 0:00:02.7]} 48. Nxd5 {[%clk 0:00:05.6]} 1-0